bitfinex-derivatives/quotes_BTCF0:USTF0_20250505
["timestamp","ask_amount","ask_price","bid_price","bid_amount"]
[1746403201387,1.08750781,94338.0,94327.0,0.0015902]
[1746403202493,0.3608,94329.0,94327.0,0.0015902]
[1746403202691,0.5534,94328.0,94327.0,0.0015902]
[1746403202892,1.1534,94328.0,94327.0,0.0015902]
[1746403203900,1.1534,94328.0,94327.0,0.2136079]
[1746403204697,1.4714275,94328.0,94327.0,0.0015902]
[1746403205291,0.0530057,94325.0,94277.0,0.3608]
[1746403205594,0.3608,94302.0,94296.0,0.1839]
[1746403205788,0.3698,94301.0,94296.0,0.1839]
[1746403205990,0.99762676,94301.0,94296.0,0.1839]
[1746403206299,0.2120812,94299.0,94296.0,0.1839]
[1746403206491,0.2120874,94296.0,94295.0,0.0010605]
[1746403206795,0.8320874,94296.0,94295.0,0.0010605]
[1746403206987,0.726048,94296.0,94295.0,0.0010605]
[1746403207186,0.74,94296.0,94295.0,0.2131502]
[1746403207897,0.9520874,94296.0,94295.0,0.0010605]
[1746403208099,0.8320874,94296.0,94295.0,0.0010605]
[1746403208596,1.1881354,94296.0,94295.0,0.0010605]
[1746403208900,1.1881354,94296.0,94292.0,0.00159079]
[1746403208901,0.2120942,94293.0,94292.0,0.00159079]
[1746403209098,1.1308,94293.0,94292.0,0.00159079]
[1746403209394,0.77,94293.0,94292.0,0.21368719]
[1746403209606,1.0881462,94293.0,94292.0,0.00159079]
[1746403209796,1.2773462,94293.0,94292.0,0.00159079]
[1746403210994,1.3443462,94293.0,94292.0,0.00159079]
[1746403211693,1.132252,94293.0,94292.0,0.00159079]
[1746403211898,1.2773462,94293.0,94292.0,0.00159079]
[1746403213394,1.065252,94293.0,94292.0,0.21368719]
[1746403213600,0.77,94293.0,94292.0,0.21368719]
[1746403214101,0.8620942,94293.0,94292.0,0.00159079]
[1746403214399,0.8349,94293.0,94292.0,0.00159079]
[1746403214700,0.8349,94293.0,94292.0,0.21368719]
[1746403215198,0.65,94293.0,94292.0,0.21368719]
[1746403216197,0.65,94293.0,94292.0,0.93053919]
[1746403216597,0.65,94293.0,94292.0,1.29963919]
[1746403217099,0.65,94293.0,94292.0,1.41963919]
[1746403217499,0.65,94293.0,94292.0,1.41263919]
[1746403217698,0.65,94293.0,94292.0,1.40763919]
[1746403218295,0.00802653,94298.0,94297.0,0.2120852]
[1746403218495,0.59,94298.0,94297.0,0.2120852]
[1746403219204,0.59,94298.0,94297.0,0.3320852]
[1746403219604,0.59,94298.0,94297.0,0.7136852]
[1746403220199,0.5379012,94298.0,94297.0,1.0697332]
[1746403220599,0.5379012,94298.0,94297.0,0.75884248]
[1746403220801,0.5379012,94298.0,94297.0,0.7136852]
[1746403222607,0.5379012,94298.0,94297.0,0.75887948]
[1746403224201,0.5379012,94298.0,94297.0,0.5936852]
[1746403224405,0.5379012,94298.0,94297.0,0.9544852]
[1746403225104,0.5379012,94298.0,94297.0,1.0744852]
[1746403226308,0.5379012,94298.0,94297.0,1.11972239]
[1746403228310,0.5379012,94298.0,94297.0,1.22577039]
[1746403228716,0.5379012,94298.0,94297.0,1.38692949]
[1746403229312,0.5379012,94298.0,94297.0,1.3416923]
[1746403230225,0.5379012,94298.0,94297.0,1.2356443]
[1746403231224,0.5379012,94298.0,94297.0,1.3416923]
[1746403231724,0.4982994,94298.0,94297.0,1.3416923]
[1746403231922,0.3794999,94298.0,94297.0,1.3416923]
[1746403232126,0.207531,94298.0,94297.0,1.38696469]
[1746403232426,0.0693718,94298.0,94297.0,1.23780559]
[1746403232721,0.0015,94310.0,94309.0,0.2120582]
[1746403232919,0.6015,94310.0,94309.0,0.61813059]
[1746403233119,0.6015,94310.0,94309.0,1.01253059]
[1746403233418,0.6015,94310.0,94309.0,1.13253059]
[1746403233820,0.6025,94310.0,94309.0,1.14153059]
[1746403234023,0.6025,94310.0,94309.0,1.0962582]
[1746403234324,0.6025,94310.0,94309.0,0.7805582]
[1746403235213,0.6025,94310.0,94309.0,0.9762582]
[1746403236318,0.6025,94310.0,94309.0,0.5818582]
[1746403236922,0.9952,94310.0,94309.0,0.56491534]
[1746403238826,0.9952,94310.0,94309.0,0.5818582]
[1746403239129,1.1152,94310.0,94309.0,0.5818582]
[1746403241035,1.1152,94310.0,94309.0,0.2210582]
[1746403241531,1.1152,94310.0,94309.0,0.20448993]
[1746403242132,0.9952,94310.0,94309.0,0.20448993]
[1746403245133,0.9952,94310.0,94302.0,0.0530179]
[1746403245329,1.356,94310.0,94289.0,0.06696]
[1746403245527,1.356,94310.0,94308.0,0.2120586]
[1746403245731,1.356,94310.0,94309.0,0.2120582]
[1746403246229,1.476,94310.0,94309.0,0.2120582]
[1746403246430,1.475,94310.0,94309.0,0.2120582]
[1746403246629,1.476,94310.0,94309.0,0.2120582]
[1746403248642,1.476,94310.0,94309.0,0.2190582]
[1746403249339,1.476,94310.0,94309.0,0.007]
[1746403249340,1.7940879,94310.0,94309.0,0.007]
[1746403252443,1.476,94310.0,94309.0,0.007]
[1746403252648,1.476,94310.0,94309.0,0.2190582]
[1746403253031,1.6880559,94310.0,94309.0,0.2190582]
[1746403253236,0.9952,94310.0,94309.0,0.2190582]
[1746403253436,0.9952,94310.0,94309.0,0.26443765]
[1746403253636,0.9952,94310.0,94309.0,0.24784699]
[1746403254640,0.9952,94310.0,94309.0,0.61214699]
[1746403255043,0.7968,94310.0,94309.0,0.73214699]
[1746403255745,0.6025,94310.0,94309.0,0.73214699]
[1746403259043,0.6025,94310.0,94309.0,0.91334699]
[1746403259343,0.6025,94310.0,94309.0,0.89677484]
[1746403259849,0.6025,94310.0,94309.0,0.85139539]
[1746403262952,0.4876058,94310.0,94309.0,0.95742738]
[1746403263157,0.001,94326.0,94325.0,0.2120222]
[1746403263348,0.721,94326.0,94325.0,0.5728222]
[1746403263651,0.0530059,94325.0,94296.0,0.5756788]
[1746403263852,0.2120537,94311.0,94310.0,0.0453589]
[1746403264041,0.2120537,94311.0,94310.0,0.2650698]
[1746403264042,0.63,94311.0,94310.0,0.2650698]
[1746403264246,0.75,94311.0,94310.0,0.2650698]
[1746403265041,0.749,94311.0,94310.0,0.2650698]
[1746403265855,0.75,94311.0,94310.0,0.2690698]
[1746403266247,0.64008673,94311.0,94310.0,0.2690698]
[1746403267553,0.63,94311.0,94310.0,0.2690698]
[1746403267950,0.63,94311.0,94310.0,0.3144383]
[1746403268149,0.63,94311.0,94310.0,0.4344383]
[1746403269152,0.00991741,94329.0,94325.0,0.2120222]
[1746403269355,0.68907539,94326.0,94325.0,0.5728222]
[1746403269556,0.68907539,94326.0,94325.0,0.7698222]
[1746403269859,0.68907539,94326.0,94325.0,0.9526222]
[1746403270156,0.681,94326.0,94325.0,0.9526222]
[1746403270360,0.681,94326.0,94325.0,0.99797561]
[1746403271048,0.681,94326.0,94325.0,0.9536222]
[1746403271253,0.8751,94326.0,94325.0,0.9536222]
[1746403272448,0.8751,94326.0,94325.0,1.1397222]
[1746403273158,0.8751,94326.0,94325.0,1.1850497]
[1746403273647,0.8751,94326.0,94325.0,1.1397222]
[1746403274154,0.8751,94326.0,94325.0,1.2597222]
[1746403275568,0.681,94326.0,94325.0,1.2597222]
[1746403275854,0.681,94326.0,94325.0,1.41104393]
[1746403276056,0.182,94343.0,94342.0,0.211984]
[1746403276256,0.872,94343.0,94342.0,0.211984]
[1746403276855,0.872,94343.0,94342.0,0.572784]
[1746403277155,0.69,94343.0,94342.0,0.572784]
[1746403277759,0.693,94343.0,94342.0,0.573784]
[1746403279255,0.693,94343.0,94342.0,0.693784]
[1746403279857,0.693,94343.0,94342.0,0.332984]
[1746403280257,0.693,94343.0,94342.0,0.399904]
[1746403280461,0.8819,94343.0,94342.0,0.399904]
[1746403281063,0.693,94343.0,94342.0,0.399904]
[1746403284161,0.693,94343.0,94342.0,0.809604]
[1746403285058,0.693,94343.0,94342.0,0.399904]
[1746403286959,0.227328,94343.0,94342.0,0.399904]
[1746403287159,0.0769243,94343.0,94342.0,0.399904]
[1746403287364,0.00159157,94353.0,94344.0,0.2119795]
[1746403287566,0.0215,94345.0,94344.0,0.5727795]
[1746403287962,0.1905,94373.0,94349.0,0.052992]
[1746403288169,0.601,94356.0,94355.0,0.5727548]
[1746403288670,0.601,94356.0,94355.0,0.6787388]
[1746403289056,0.601,94356.0,94355.0,0.7987388]
[1746403289865,0.5444218,94356.0,94355.0,0.7987388]
[1746403290466,0.5039328,94356.0,94355.0,0.7987388]
[1746403290672,0.07966368,94378.0,94377.0,0.2119054]
[1746403290871,0.53966368,94378.0,94377.0,0.6395854]
[1746403291872,0.468,94378.0,94377.0,0.6405854]
[1746403293170,0.468,94378.0,94377.0,0.6395854]
[1746403293472,0.4358175,94378.0,94377.0,0.7465414]
[1746403293769,0.4268175,94378.0,94377.0,0.9453414]
[1746403293970,0.4358175,94378.0,94377.0,0.9463414]
[1746403294172,0.4358175,94378.0,94377.0,1.0663414]
[1746403294367,0.1933057,94378.0,94377.0,1.2628414]
[1746403294666,0.1,94400.0,94393.0,0.2118695]
[1746403294871,0.01000008,94394.0,94393.0,1.0003495]
[1746403295073,0.01000008,94394.0,94393.0,1.22628949]
[1746403295465,0.01000008,94394.0,94393.0,1.60898949]
[1746403296274,0.1,94400.0,94399.0,0.211856]
[1746403296473,0.6,94400.0,94399.0,0.211856]
[1746403296771,0.6,94400.0,94399.0,0.317788]
[1746403297466,0.6,94400.0,94399.0,0.703488]
[1746403297874,0.612,94400.0,94399.0,0.704488]
[1746403298277,0.612,94400.0,94399.0,0.71461171]
[1746403299668,0.1754374,94400.0,94399.0,0.71461171]
[1746403299875,0.1821,94409.0,94408.0,0.2118358]
[1746403300070,0.8021,94409.0,94408.0,0.6394758]
[1746403300575,0.62,94409.0,94408.0,1.0491758]
[1746403300777,0.1879,94415.0,94414.0,0.2118223]
[1746403300974,0.6379,94415.0,94414.0,0.2118223]
[1746403301581,0.6379,94415.0,94414.0,0.2274112]
[1746403301771,0.835,94415.0,94414.0,0.4157112]
[1746403301974,0.846,94415.0,94414.0,0.2952512]
[1746403302171,1.1778201,94415.0,94414.0,0.2952512]
[1746403302571,1.1778201,94415.0,94414.0,0.29515309]
[1746403302979,0.966,94415.0,94414.0,0.29515309]
[1746403303377,0.961,94415.0,94414.0,0.29415309]
[1746403303582,0.961,94415.0,94414.0,0.22731309]
[1746403303782,0.961,94415.0,94414.0,0.29415309]
[1746403306874,0.961,94415.0,94414.0,0.66295309]
[1746403307081,0.841,94415.0,94414.0,0.66295309]
[1746403310387,0.6546,94415.0,94414.0,0.66295309]
[1746403311493,0.6506,94415.0,94414.0,0.66295309]
[1746403312295,0.8308,94415.0,94414.0,0.29415309]
[1746403312588,0.8308,94415.0,94414.0,0.2786623]
[1746403313188,0.9508,94415.0,94414.0,0.2786623]
[1746403313594,0.9488,94415.0,94414.0,0.2786623]
[1746403315785,0.9171365,94415.0,94414.0,0.2786623]
[1746403316187,0.7971365,94415.0,94414.0,0.2786623]
[1746403316397,0.7971365,94415.0,94414.0,0.6440623]
[1746403316898,0.1971,94415.0,94414.0,0.7499783]
[1746403317097,0.4771,94415.0,94414.0,0.7499783]
[1746403317800,0.4771,94415.0,94414.0,1.4725783]
[1746403320305,0.4771,94415.0,94414.0,1.4715783]
[1746403320501,0.28,94415.0,94414.0,1.4715783]
[1746403320799,0.001,94416.0,94415.0,0.2118201]
[1746403320998,0.601,94416.0,94415.0,0.2786601]
[1746403321194,0.721,94416.0,94415.0,0.2786601]
[1746403321595,0.721,94416.0,94415.0,0.8476601]
[1746403321903,0.38275,94416.0,94415.0,0.8476601]
[1746403322105,0.22200127,94442.0,94441.0,0.2117618]
[1746403322295,0.58,94442.0,94441.0,0.2117618]
[1746403322693,0.58,94442.0,94439.0,0.2647054]
[1746403322903,0.791763,94442.0,94441.0,0.2117618]
[1746403323106,0.2117752,94435.0,94434.0,0.5725743]
[1746403323303,0.9317752,94435.0,94434.0,0.5725743]
[1746403324105,1.0517752,94435.0,94434.0,0.3608]
[1746403324309,0.845,94435.0,94434.0,0.5725775]
[1746403326104,1.0517752,94435.0,94434.0,0.5725775]
[1746403326307,0.845,94435.0,94434.0,0.5725775]
[1746403327208,1.0567752,94435.0,94434.0,0.5725775]
[1746403327409,1.0557752,94435.0,94434.0,0.5725775]
[1746403328009,0.844,94435.0,94434.0,0.5725775]
[1746403329508,0.844,94435.0,94434.0,0.55603095]
[1746403331612,0.84611785,94435.0,94431.0,0.2117834]
[1746403331806,0.211781,94433.0,94432.0,0.2117806]
[1746403332007,0.911781,94433.0,94432.0,0.2117806]
[1746403332209,1.031781,94433.0,94432.0,0.2117806]
[1746403332406,1.031781,94433.0,94430.0,0.0529465]
[1746403332407,0.2117838,94432.0,94430.0,0.0529465]
[1746403332609,1.1112838,94432.0,94430.0,0.0529465]
[1746403332910,0.8995,94432.0,94431.0,0.2117842]
[1746403333209,1.0195,94432.0,94431.0,0.2117842]
[1746403333614,1.2178,94432.0,94431.0,0.2117842]
[1746403334107,0.2117909,94428.0,94427.0,0.01588]
[1746403334303,0.2118089,94420.0,94405.0,0.67939256]
[1746403334509,0.2118223,94414.0,94405.0,0.26969256]
[1746403334709,0.052958,94410.0,94405.0,0.26969256]
[1746403335012,0.2118403,94406.0,94405.0,0.48153416]
[1746403335314,0.8718403,94406.0,94405.0,0.2118416]
[1746403336316,0.9918403,94406.0,94405.0,0.2118416]
[1746403336501,0.78,94406.0,94405.0,0.2118416]
[1746403336705,1.00191253,94406.0,94405.0,0.2118416]
[1746403336914,1.00291253,94406.0,94405.0,0.2118416]
[1746403337313,1.00191253,94406.0,94405.0,0.2118416]
[1746403337615,0.79107223,94406.0,94405.0,0.2118416]
[1746403338307,1.16607223,94406.0,94405.0,0.2118416]
[1746403338516,1.37791253,94406.0,94405.0,0.2118416]
[1746403339014,1.16607223,94406.0,94405.0,0.2118416]
[1746403339717,1.37791253,94406.0,94405.0,0.2118416]
[1746403341604,1.37691253,94406.0,94405.0,0.2118416]
[1746403341811,1.37791253,94406.0,94405.0,0.2118416]
[1746403342418,0.2118583,94398.0,94397.0,0.00158903]
[1746403342607,1.2326583,94398.0,94397.0,0.00158903]
[1746403342806,0.2118762,94390.0,94389.0,0.00158894]
[1746403343007,1.2326762,94390.0,94389.0,0.21346744]
[1746403343209,1.3526762,94390.0,94389.0,0.21346744]
[1746403343704,1.7320762,94390.0,94389.0,0.2118785]
[1746403344106,0.2118829,94389.0,94388.0,0.2118805]
[1746403344307,0.8318829,94389.0,94388.0,0.1955195]
[1746403344515,1.2112829,94389.0,94388.0,0.1955195]
[1746403344818,0.2118849,94387.0,94386.0,0.2118841]
[1746403345115,1.0118849,94387.0,94386.0,0.2118841]
[1746403345315,0.8,94387.0,94386.0,0.2118841]
[1746403345924,0.52,94387.0,94386.0,0.5726841]
[1746403346216,0.16892942,94387.0,94386.0,0.9386841]
[1746403347007,0.161,94387.0,94386.0,0.9386841]
[1746403347618,0.10621824,94417.0,94414.0,0.2118223]
[1746403347916,0.6115,94415.0,94414.0,0.2118223]
[1746403348218,0.84533112,94415.0,94414.0,0.2118223]
[1746403348809,0.85553859,94415.0,94414.0,0.2118223]
[1746403349014,1.04603859,94415.0,94414.0,0.2118223]
[1746403349413,0.92991511,94415.0,94414.0,0.2118223]
[1746403350009,0.93591511,94415.0,94414.0,0.3917223]
[1746403350210,0.74541511,94415.0,94414.0,0.3917223]
[1746403350920,0.74541511,94415.0,94414.0,0.5865223]
[1746403351216,0.62541511,94415.0,94414.0,0.5865223]
[1746403353923,0.98621511,94415.0,94414.0,0.5865223]
[1746403354117,1.57293112,94415.0,94386.0,0.4097]
[1746403354421,0.3608,94401.0,94400.0,0.2648169]
[1746403354619,0.9608,94401.0,94400.0,0.4527169]
[1746403355216,1.0808,94401.0,94400.0,0.4527169]
[1746403356518,1.189732,94401.0,94384.0,0.3608]
[1746403356714,0.2118785,94389.0,94378.0,0.02315]
[1746403356916,0.65704,94389.0,94356.0,0.3223182]
[1746403357116,0.5727301,94366.0,94356.0,0.5102182]
[1746403357417,1.3197701,94366.0,94359.0,0.211945]
[1746403357613,1.3197701,94366.0,94356.0,0.5102182]
[1746403357814,1.3197701,94366.0,94362.0,0.21352801]
[1746403358015,0.2119368,94363.0,94362.0,0.21352801]
[1746403358217,0.8019368,94363.0,94362.0,0.21352801]
[1746403358817,0.8019368,94363.0,94362.0,0.00158961]
[1746403359210,0.9219368,94363.0,94362.0,0.21352871]
[1746403359414,0.9219368,94363.0,94352.0,0.0015898]
[1746403359415,0.211966,94350.0,94349.0,0.25196644]
[1746403359615,1.659606,94350.0,94349.0,0.21708548]
[1746403359824,1.765594,94350.0,94349.0,0.21708548]
[1746403360323,1.885594,94350.0,94349.0,0.21708548]
[1746403360523,1.89561295,94350.0,94349.0,0.21708548]
[1746403361319,1.89561295,94350.0,94337.0,0.2119946]
[1746403361320,0.2119914,94339.0,94337.0,0.2119946]
[1746403361521,0.2119952,94337.0,94336.0,0.3848]
[1746403361815,0.9219952,94337.0,94336.0,0.1957]
[1746403362223,1.4329952,94337.0,94336.0,0.1957]
[1746403363223,1.5005152,94337.0,94336.0,0.1957]
[1746403363418,1.4329952,94337.0,94336.0,0.1957]
[1746403363619,1.5005152,94337.0,94336.0,0.1957]
[1746403364125,1.221,94337.0,94336.0,0.1957]
[1746403364423,0.83,94337.0,94336.0,0.4076975]
[1746403365716,0.83,94337.0,94336.0,0.39132901]
[1746403366525,0.15919164,94383.0,94336.0,0.39132901]
[1746403366526,0.3608,94382.0,94357.0,0.2119503]
[1746403366727,0.67159072,94358.0,94351.0,0.4097]
[1746403367029,0.1829196,94357.0,94356.0,0.2119526]
[1746403367327,0.8129196,94357.0,94356.0,0.2119526]
[1746403367627,0.6321196,94357.0,94356.0,0.2119526]
[1746403373524,0.8191196,94357.0,94354.0,0.3608]
[1746403373727,0.2119615,94352.0,94351.0,0.4097]
[1746403373919,0.9119615,94352.0,94351.0,0.4097]
[1746403374116,1.0319615,94352.0,94351.0,0.4097]
[1746403374331,1.4082615,94352.0,94351.0,0.4097]
[1746403376033,1.5142495,94352.0,94351.0,0.4097]
[1746403378326,0.2119818,94343.0,94342.0,0.2119833]
[1746403378525,0.9119818,94343.0,94342.0,0.2119833]
[1746403379133,1.0319818,94343.0,94342.0,0.2119833]
[1746403379334,1.4139818,94343.0,94342.0,0.2119833]
[1746403379542,0.2119857,94342.0,94340.0,0.2119875]
[1746403379736,0.8819857,94342.0,94341.0,0.2119863]
[1746403380031,1.2639857,94342.0,94341.0,0.2119863]
[1746403380233,1.172,94342.0,94341.0,0.2119863]
[1746403382237,1.172,94342.0,94321.0,0.0530075]
[1746403382238,0.2120155,94328.0,94321.0,0.0530075]
[1746403382440,0.7,94328.0,94327.0,0.0015902]
[1746403382732,0.7,94328.0,94327.0,0.2136079]
[1746403382934,0.7,94328.0,94327.0,0.5786079]
[1746403383131,0.82,94328.0,94327.0,0.5786079]
[1746403383332,0.82,94328.0,94325.0,0.00106016]
[1746403383538,0.21202,94326.0,94325.0,0.00106016]
[1746403383731,0.90202,94326.0,94325.0,0.00106016]
[1746403383928,1.0576,94326.0,94325.0,0.21308236]
[1746403384234,1.1776,94326.0,94325.0,0.21308236]
[1746403387243,1.38962,94326.0,94325.0,0.00106016]
[1746403387433,1.283616,94326.0,94308.0,0.3608]
[1746403387628,0.2120462,94315.0,94309.0,0.0530142]
[1746403387836,0.2120492,94313.0,94312.0,0.212051]
[1746403388037,0.71,94313.0,94308.0,0.1798]
[1746403388233,0.2120579,94310.0,94308.0,0.1798]
[1746403388430,0.391,94309.0,94305.0,0.1946]
[1746403388629,1.051,94309.0,94305.0,0.1946]
[1746403388835,1.051,94309.0,94308.0,0.2120604]
[1746403389237,1.171,94309.0,94308.0,0.2120604]
[1746403391349,0.2120715,94304.0,94301.0,0.053019]
[1746403391542,0.3718,94303.0,94302.0,0.2120739]
[1746403391741,1.09183931,94303.0,94302.0,0.2120739]
[1746403392247,1.2018,94303.0,94302.0,0.2120739]
[1746403398942,1.2018,94303.0,94302.0,0.19549266]
[1746403399442,1.2018,94303.0,94302.0,0.57129266]
[1746403401240,1.0214,94303.0,94302.0,0.57129266]
[1746403402851,1.2133,94303.0,94302.0,0.57129266]
[1746403404252,1.0214,94303.0,94302.0,0.57129266]
[1746403410356,1.2125,94303.0,94302.0,0.57129266]
[1746403417561,1.21462082,94303.0,94302.0,0.57129266]
[1746403421061,1.21462082,94303.0,94302.0,0.61666549]
[1746403422254,1.21462082,94303.0,94302.0,0.60007816]
[1746403425558,1.42669252,94303.0,94302.0,0.04537283]
[1746403425760,0.2120762,94301.0,94300.0,0.1]
[1746403425953,1.2128762,94301.0,94300.0,0.1]
[1746403426150,0.2120874,94296.0,94295.0,0.0010605]
[1746403426355,1.0003274,94296.0,94295.0,0.0010605]
[1746403426553,0.2120919,94294.0,94293.0,0.21528757]
[1746403426761,0.2120919,94294.0,94274.0,0.01591]
[1746403426762,0.0530258,94289.0,94274.0,0.01591]
[1746403426959,0.5729099,94286.0,94274.0,0.01591]
[1746403427155,1.3329099,94286.0,94269.0,0.1878]
[1746403427365,1.3329099,94286.0,94274.0,0.053034]
[1746403427558,1.3329099,94286.0,94275.0,0.0530335]
[1746403427959,1.3329099,94286.0,94279.0,0.2121249]
[1746403428156,1.3329099,94286.0,94276.0,0.32212408]
[1746403428353,1.3329099,94286.0,94283.0,0.2121148]
[1746403428555,1.1208,94286.0,94285.0,0.48172778]
[1746403428967,1.1208,94286.0,94285.0,0.26961558]
[1746403429157,1.3329099,94286.0,94285.0,0.26961558]
[1746403430671,0.2121132,94285.0,94283.0,0.2121166]
[1746403430972,0.00212125,94284.0,94283.0,0.2121166]
[1746403431275,0.81212125,94284.0,94283.0,0.2121166]
[1746403431472,1.20062125,94284.0,94283.0,0.2121166]
[1746403432367,1.41273565,94284.0,94283.0,0.2121166]
[1746403433867,0.2121174,94283.0,94277.0,0.392]
[1746403434068,0.3608,94278.0,94277.0,0.6041302]
[1746403434259,0.9708,94278.0,94274.0,0.0530341]
[1746403434461,0.5999313,94277.0,94274.0,0.0530341]
[1746403434670,0.00212143,94276.0,94275.0,0.2121347]
[1746403434872,0.69212143,94276.0,94275.0,0.4096347]
[1746403435167,1.07992143,94276.0,94275.0,0.3802]
[1746403435372,1.07992143,94276.0,94275.0,0.5923347]
[1746403435972,1.44072143,94276.0,94275.0,0.5923347]
[1746403436677,1.44072143,94276.0,94275.0,0.3802]
[1746403437073,1.45127162,94276.0,94275.0,0.3802]
[1746403437281,1.66340402,94276.0,94275.0,0.3802]
[1746403437474,0.2121372,94274.0,94271.0,0.2121416]
[1746403437779,0.5945392,94273.0,94272.0,0.0453733]
[1746403437974,0.5945392,94273.0,94270.0,0.2121451]
[1746403437975,1.2045392,94273.0,94271.0,0.0453733]
[1746403438176,1.2045392,94273.0,94272.0,0.0453733]
[1746403438479,0.2121457,94271.0,94270.0,0.04536997]
[1746403438780,0.8521457,94271.0,94269.0,0.1892]
[1746403439072,0.3824,94270.0,94269.0,0.4013482]
[1746403439279,1.01452156,94270.0,94269.0,0.44671525]
[1746403440173,1.13452156,94270.0,94269.0,0.44671525]
[1746403441681,1.34666746,94270.0,94269.0,0.04536705]
[1746403442072,1.13452156,94270.0,94269.0,0.25751525]
[1746403442374,1.34666746,94270.0,94269.0,0.04536705]
[1746403442580,0.2121527,94267.0,94266.0,0.04536705]
[1746403442782,0.59,94267.0,94266.0,0.04536705]
[1746403442975,0.59,94267.0,94266.0,0.25752195]
[1746403443175,0.71,94267.0,94266.0,0.25752195]
[1746403443369,1.6541527,94267.0,94266.0,0.04536705]
[1746403443572,1.6541527,94267.0,94265.0,0.00106083]
[1746403443882,0.2121549,94266.0,94265.0,0.00106083]
[1746403444177,1.0021549,94266.0,94265.0,0.00106083]
[1746403444387,1.3733549,94266.0,94265.0,0.00106083]
[1746403448278,1.2533549,94266.0,94265.0,0.00106083]
[1746403448783,1.25547655,94266.0,94265.0,0.00106083]
[1746403453883,0.85582165,94266.0,94265.0,0.21321803]
[1746403454578,0.67212165,94266.0,94265.0,0.56930203]
[1746403454779,0.3608,94286.0,94267.0,0.0530381]
[1746403454981,0.7608,94286.0,94285.0,0.2121122]
[1746403455584,0.7629212,94286.0,94285.0,0.2121122]
[1746403455982,0.7629212,94286.0,94285.0,0.5862122]
[1746403456284,0.77317258,94286.0,94285.0,0.5862122]
[1746403457179,0.4021212,94286.0,94285.0,0.9470122]
[1746403457380,0.4021212,94286.0,94285.0,0.5862122]
[1746403457990,0.4021212,94286.0,94285.0,0.63158782]
[1746403458190,0.4021212,94286.0,94285.0,1.16128782]
[1746403461597,0.10721824,94326.0,94285.0,1.66603562]
[1746403461783,0.0015,94310.0,94309.0,0.2120582]
[1746403461987,0.5915,94310.0,94309.0,0.2120582]
[1746403462189,0.5915,94310.0,94309.0,0.7208582]
[1746403463892,0.5915,94310.0,94309.0,0.5088]
[1746403464083,0.2120672,94305.0,94304.0,0.0159]
[1746403464289,1.2628672,94305.0,94304.0,0.0159]
[1746403464493,0.2120829,94298.0,94288.0,0.2121033]
[1746403464690,0.9320829,94298.0,94285.0,0.3815]
[1746403465087,1.4345829,94298.0,94285.0,0.3815]
[1746403465293,1.5406309,94298.0,94285.0,0.3815]
[1746403465689,1.5406309,94298.0,94286.0,0.212109]
[1746403465893,1.5406309,94298.0,94285.0,0.3815]
[1746403466391,1.5406309,94298.0,94289.0,0.0530257]
[1746403466591,1.5406309,94298.0,94286.0,0.0530273]
[1746403466787,1.5406309,94298.0,94290.0,0.2120988]
[1746403467095,1.5406309,94298.0,94287.0,0.0530266]
[1746403467296,0.0530214,94297.0,94290.0,0.2121006]
[1746403467497,0.7330214,94297.0,94291.0,0.1931]
[1746403467796,0.2120909,94295.0,94292.0,0.2120962]
[1746403468096,0.8020909,94295.0,94291.0,0.1931]
[1746403468295,0.3872,94294.0,94291.0,0.1931]
[1746403468498,1.0272,94294.0,94291.0,0.1931]
[1746403468797,1.2392924,94294.0,94291.0,0.1931]
[1746403469094,1.2392924,94294.0,94291.0,0.4051982]
[1746403469691,1.0272,94294.0,94293.0,0.2120942]
[1746403469882,1.0272,94294.0,94291.0,0.1931]
[1746403470288,1.0272,94294.0,94291.0,0.4051985]
[1746403470790,1.0272,94294.0,94293.0,0.2120942]
[1746403470992,1.0272,94294.0,94291.0,0.4051976]
[1746403471289,0.2120942,94293.0,94291.0,0.1931]
[1746403471490,0.62,94293.0,94289.0,0.1884]
[1746403471686,0.572902,94290.0,94287.0,0.2121066]
[1746403471899,0.3751,94289.0,94287.0,0.2121066]
[1746403472196,1.0851,94289.0,94287.0,0.2121066]
[1746403472589,1.0851,94289.0,94288.0,0.3947054]
[1746403474601,0.71,94289.0,94288.0,0.7507614]
[1746403474801,0.31,94289.0,94288.0,0.7507614]
[1746403475002,0.3608,94311.0,94304.0,0.2120694]
[1746403475205,0.67212077,94305.0,94304.0,0.3320694]
[1746403475799,0.67212077,94305.0,94304.0,0.9303694]
[1746403477208,0.67212077,94305.0,94304.0,0.94071258]
[1746403478404,0.67212077,94305.0,94304.0,0.65278198]
[1746403478805,0.67212077,94305.0,94304.0,0.75882198]
[1746403479302,0.28212077,94305.0,94304.0,1.23962198]
[1746403479498,0.28212077,94305.0,94304.0,1.28490209]
[1746403481409,0.60212077,94305.0,94304.0,1.28490209]
[1746403483408,0.60212077,94305.0,94304.0,1.2292788]
[1746403483905,0.60212077,94305.0,94304.0,1.27454857]
[1746403484101,0.60212077,94305.0,94304.0,1.2292788]
[1746403485305,0.60212077,94305.0,94304.0,1.27455703]
[1746403485809,0.60212077,94305.0,94304.0,1.47045703]
[1746403489511,0.35178297,94305.0,94304.0,1.6751788]
[1746403489714,0.0015,94310.0,94304.0,1.6751788]
[1746403489715,1e-07,94310.0,94309.0,0.2120582]
[1746403489916,0.0238412,94310.0,94309.0,0.6217582]
[1746403490108,0.1878,94338.0,94325.0,0.2120222]
[1746403490309,0.641,94326.0,94325.0,0.22759207]
[1746403490511,0.641,94326.0,94325.0,0.33360807]
[1746403490710,0.141,94326.0,94325.0,0.33360807]
[1746403490914,0.141,94326.0,94325.0,0.52890807]
[1746403491114,0.141,94326.0,94325.0,0.64890807]
[1746403491615,0.141,94326.0,94325.0,0.64884889]
[1746403492217,0.141,94326.0,94325.0,0.6333382]
[1746403492919,0.79302,94326.0,94325.0,0.5273222]
[1746403493117,0.581,94326.0,94325.0,0.4750022]
[1746403495415,0.581,94326.0,94325.0,0.8847022]
[1746403496426,0.581,94326.0,94325.0,0.6894022]
[1746403500420,0.9754,94326.0,94325.0,0.6894022]
[1746403501221,1.18742,94326.0,94325.0,0.6894022]
[1746403501420,0.9754,94326.0,94325.0,0.6894022]
[1746403502120,1.0954,94326.0,94325.0,0.6894022]
[1746403504520,1.10338861,94326.0,94325.0,0.6894022]
[1746403506821,1.10338861,94326.0,94325.0,0.6217222]
[1746403507033,0.2120335,94320.0,94319.0,0.10271]